[Event "90th GER-ch 2019"]
[Site "Magdeburg"]
[Date "2019.05.31"]
[Round "8.5"]
[White "Kvetny, Mark"]
[Black "Pfreundt, Jakob"]
[Result "1-0"]
[ECO "A05"]
[WhiteElo "2414"]
[BlackElo "2392"]
[Annotator "ChessBase"]
[PlyCount "69"]
[EventDate "2019.05.26"]
[EventType "tourn"]
[EventCountry "GER"]
[SourceTitle "playchess.com"]
[Source "ChessBase"]
[SourceQuality "1"]
[TimeControl "40/5400+30:1800+30"]

1. Nf3 {[%emt 0:00:00]} Nf6 {[%emt 0:00:00]} 2. c4 {[%emt 0:00:00]} e6 {[%emt 0:01:26]} 3. Nc3 {[%emt 0:00:00]} d5 {[%emt 0:00:17]} 4. e3 {[%emt 0:00:04]} b6 {[%emt 0:02:36]} 5. cxd5 {[%emt 0:02:27]} exd5 {[%emt 0:00:27]} 6. d4 {[%emt 0:04:23]} Bd6 {[%emt 0:01:34]} 7. Bd3 {[%emt 0:01:49]} O-O {[%emt 0:00:25]} 8. Ne5 {[%emt 0:03:34]} Ba6 {[%emt 0:06:58]} 9. O-O {[%emt 0:06:38]} c5 {[%emt 0:17:02]} 10. f4 {[%emt 0:01:16]} Bxd3 {[%emt 0:07:17]} 11. Qxd3 {[%emt 0:00:07]} c4 {[%emt 0:00:24]} 12. Qe2 {[%emt 0:04:35]} Bb4 {[%emt 0:04:35]} 13. Nd1 {[%emt 0:15:43]} Ne4 {[%emt 0:21:23]} 14. Nf2 {[%emt 0:10:18]} Nxf2 {[%emt 0:00:24]} 15. Rxf2 {[%emt 0:00:15]} Be7 {[%emt 0:04:59]} 16. f5 {[%emt 0:02:48]} Bf6 {[%emt 0:08:23]} 17. e4 {[%emt 0:09:04]} Re8 {[%emt 0:00:13]} 18. Bf4 {[%emt 0:03:51]} Na6 {[%emt 0:02:15]} 19. Qh5 {[%emt 0:11:16]} g6 {[%emt 0:06:06]} 20. fxg6 {[%emt 0:01:32]} fxg6 {[%emt 0:02:06]} 21. Qf3 {[%emt 0:05:17]} Rf8 {[%emt 0:02:32]} 22. exd5 {[%emt 0:01:57]} Bg7 {[%emt 0:07:02]} 23. Nc6 {[%emt 0:03:58]} Qd7 {[%emt 0:00:51]} 24. d6 {[%emt 0:00:40]} Kh8 {[%emt 0:00:25]} 25. Qe4 {[%emt 0:04:49]} Rae8 {[%emt 0:01:02]} 26. Ne7 {[%emt 0:02:16]} Nb4 {[%emt 0:00:45]} 27. Be5 {[%emt 0:00:28]} Rxf2 {[%emt 0:00:44]} 28. Kxf2 {[%emt 0:00:02]} Nd3+ {[%emt 0:00:31]} 29. Kg1 {[%emt 0:00:09]} Rf8 {[%emt 0:00:46]} 30. Rf1 {[%emt 0:01:32]} Qd8 {[%emt 0:00:46]} 31. Rf3 {[%emt 0:02:32]} Rxf3 {[%emt 0:00:29]} 32. gxf3 {[%emt 0:00:15]} Nxb2 {[%emt 0:00:32]} 33. Qh4 {[%emt 0:01:33]} Qe8 {[%emt 0:00:12]} 34. Qf6 {[%emt 0:00:20]} Bxf6 {[%emt 0:00:42]} 35. Bxf6# {[%emt 0:00:04]} 1-0

[Event "90th GER-ch 2019"]
[Site "Magdeburg"]
[Date "2019.05.31"]
[Round "8.6"]
[White "Winterberg, Lukas"]
[Black "Engel, Luis"]
[Result "1-0"]
[ECO "D38"]
[WhiteElo "2376"]
[BlackElo "2512"]
[Annotator "RC"]
[PlyCount "113"]
[EventDate "2019.05.26"]
[EventType "tourn"]
[EventCountry "GER"]
[SourceTitle "playchess.com"]
[Source "ChessBase"]
[SourceQuality "1"]
[TimeControl "40/5400+30:1800+30"]

1. d4 {[%emt 0:00:00]} Nf6 {[%emt 0:00:00]} 2. c4 {[%emt 0:00:00]} e6 {[%emt 0:00:00]} 3. Nf3 {[%emt 0:00:00]} d5 {[%emt 0:00:00]} 4. Nc3 {[%emt 0:00:12]} Bb4 {[%emt 0:00:00]} 5. Qb3 {[%emt 0:00:26]} c5 {[%emt 0:01:07]} 6. dxc5 {[%emt 0:00:15]} Nc6 {[%emt 0:00:07]} 7. Bg5 {[%emt 0:00:25]} Qa5 {[%emt 0:05:11]} 8. Bxf6 {[%emt 0:00:15]} dxc4 {[%emt 0:00:10]} 9. Qxc4 {[%emt 0:00:11]} gxf6 {[%emt 0:00:05]} 10. Rc1 {[%emt 0:00:15]} Qxc5 {[%emt 0:01:38]} 11. Qh4 {[%emt 0:00:25]} Ke7 {[%emt 0:01:15]} 12. g3 {[%emt 0:00:15]} Bxc3+ {[%emt 0:07:25]} 13. bxc3 {[%emt 0:00:03]} b6 {[%emt 0:04:52]} 14. Bg2 {[%emt 0:00:13]} Bb7 {[%emt 0:00:48]} 15. Nd2 {[%emt 0:05:34]} Qg5 {[%emt 0:04:26]} 16. Qa4 {[%emt 0:00:53]} Na5 {[%emt 0:12:08]} 17. Qa3+ {[%emt 0:10:07]} Qc5 {[%emt 0:00:45]} 18. Qxc5+ {[%emt 0:00:19]} bxc5 {[%emt 0:00:06]} 19. Bxb7 {[%emt 0:00:55]} Nxb7 {[%emt 0:00:06]} 20. Rb1 {[%emt 0:01:38]} Nd6 {[%emt 0:00:53]} 21. O-O {[%emt 0:13:11]} Rhb8 {[%emt 0:00:44]} 22. Rb3 {[%emt 0:07:07]} Rb6 {[%emt 0:02:50]} 23. Rfb1 {[%emt 0:04:48]} Ra6 {[%emt 0:01:50]} 24. R1b2 {[%emt 0:00:27]} Rc8 {[%emt 0:02:31]} 25. c4 {[%emt 0:02:05]} Ra4 {[%emt 0:02:52]} 26. Rc2 {[%emt 0:00:02]} Rc6 {[%emt 0:02:05]} 27. Kg2 {[%emt 0:10:01]} Rca6 {[%emt 0:01:33]} 28. Rbb2 {[%emt 0:00:03]} Kd7 {[%emt 0:04:03]} 29. Kf3 {[%emt 0:00:36]} Rb6 {[%emt 0:00:48]} 30. Rb3 {[%emt 0:04:22]} Kc6 {[%emt 0:02:14]} 31. e3 {[%emt 0:02:32]} Rba6 {[%emt 0:05:20]} 32. Rbb2 {[%emt 0:00:24]} f5 {[%emt 0:01:30]} 33. g4 {[%emt 0:02:43]} Rb6 {[%emt 0:04:00]} 34. Rb3 {[%emt 0:02:48]} Rxb3 {[%emt 0:04:20]} 35. axb3 {[%emt 0:00:03]} fxg4+ {[%emt 0:02:56]} 36. Kxg4 {[%emt 0:00:03]} Ra1 {[%emt 0:00:10]} 37. Kg5 {[%emt 0:06:57]} Rd1 {[%emt 0:12:35]} 38. Nf3 {[%emt 0:04:26]} Rb1 {[%emt 0:01:39]} 39. Kf6 {[%emt 0:03:48]} Rxb3 {[%emt 0:00:42]} 40. Ne5+ {[%emt 0:00:28]} Kc7 {[%emt 0:02:28]} 41. Nxf7 {[%emt 0:33:23]} Nxf7 {[%emt 0:33:06]} 42. Kxf7 {[%emt 0:00:03]} a5 {[%emt 0:05:06]} 43. Kxe6 {[%emt 0:00:21]} a4 {[%emt 0:00:08]} 44. e4 {[%emt 0:09:16]} a3 {[%emt 0:00:44]} 45. f4 {[%emt 0:07:49]} Rb6+ {[%emt 0:01:07]} 46. Kd5 {[%emt 0:00:00]} Rb2 {[%emt 0:00:00]} 47. Rc3 {[%emt 0:00:00]} a2 {[%emt 0:00:00]} 48. Ra3 {[%emt 0:00:00]} Rxh2 {[%emt 0:00:00]} 49. f5 {[%emt 0:00:00]} h5 {[%emt 0:00:00]} 50. f6 {[%emt 0:00:00]} Rf2 {[%emt 0:00:00]} 51. Ke6 {[%emt 0:00:00]} h4 {[%emt 0:00:00]} 52. f7 {[%emt 0:00:00]} h3 {[%emt 0:00:00]} 53. Rxa2 {[%emt 0:00:00]} h2 {[%emt 0:00:00]} 54. Ra1 {[%emt 0:00:00]} Kd8 {[%emt 0:00:00]} 55. Ra8+ {[%emt 0:00:00]} Kc7 {[%emt 0:00:00]} 56. Rh8 {[%emt 0:00:00]} Kc6 {[%emt 0:00:00]} 57. e5 {[%emt 0:00:00] Kd5+} 1-0

[Event "90th GER-ch 2019"]
[Site "Magdeburg"]
[Date "2019.05.31"]
[Round "8.7"]
[White "Maetzkow, Maximilian Paul"]
[Black "Paul, Johannes"]
[Result "0-1"]
[ECO "E32"]
[WhiteElo "2338"]
[BlackElo "2364"]
[Annotator "ChessBase"]
[PlyCount "86"]
[EventDate "2019.05.26"]
[EventType "tourn"]
[EventCountry "GER"]
[SourceTitle "playchess.com"]
[Source "ChessBase"]
[SourceQuality "1"]
[TimeControl "40/5400+30:1800+30"]

1. d4 {[%emt 0:00:00]} Nf6 {[%emt 0:00:00]} 2. c4 {[%emt 0:00:00]} e6 {[%emt 0:00:00]} 3. Nc3 {[%emt 0:00:00]} Bb4 {[%emt 0:00:00]} 4. Qc2 {[%emt 0:00:00]} d6 {[%emt 0:00:00]} 5. a3 {[%emt 0:00:26]} Bxc3+ {[%emt 0:00:00]} 6. Qxc3 {[%emt 0:00:05]} O-O {[%emt 0:00:40]} 7. Nf3 {[%emt 0:02:59]} Nbd7 {[%emt 0:01:04]} 8. e3 {[%emt 0:01:57]} b6 {[%emt 0:00:39]} 9. Be2 {[%emt 0:00:27]} Bb7 {[%emt 0:00:05]} 10. O-O {[%emt 0:00:41]} Ne4 {[%emt 0:00:23]} 11. Qc2 {[%emt 0:00:22]} f5 {[%emt 0:00:08]} 12. b4 {[%emt 0:00:35]} Rf6 {[%emt 0:03:40]} 13. Bb2 {[%emt 0:06:07]} Rg6 {[%emt 0:00:55]} 14. Ne1 {[%emt 0:02:58]} Qh4 {[%emt 0:04:10]} 15. f3 {[%emt 0:40:49]} Rh6 {[%emt 0:12:35]} 16. h3 {[%emt 0:02:07]} Ng5 {[%emt 0:02:32]} 17. Bd3 {[%emt 0:18:08]} Qg3 {[%emt 0:03:54]} 18. Rf2 {[%emt 0:00:54]} Nxh3+ {[%emt 0:05:23]} 19. Kf1 {[%emt 0:01:20]} Nxf2 {[%emt 0:00:12]} 20. Qxf2 {[%emt 0:00:02]} Rh1+ {[%emt 0:00:51]} 21. Ke2 {[%emt 0:00:06]} Qxf2+ {[%emt 0:05:20]} 22. Kxf2 {[%emt 0:00:01]} a5 {[%emt 0:02:06]} 23. b5 {[%emt 0:00:54]} Rf8 {[%emt 0:00:11]} 24. Rc1 {[%emt 0:00:56]} f4 {[%emt 0:24:13]} 25. e4 {[%emt 0:03:02]} Re8 {[%emt 0:00:10]} 26. Bf1 {[%emt 0:00:54]} e5 {[%emt 0:01:36]} 27. Nd3 {[%emt 0:01:02]} c5 {[%emt 0:04:10]} 28. dxe5 {[%emt 0:01:48]} dxe5 {[%emt 0:00:22]} 29. Rd1 {[%emt 0:00:16]} Re7 {[%emt 0:02:47]} 30. g3 {[%emt 0:04:55]} fxg3+ {[%emt 0:03:31]} 31. Kxg3 {[%emt 0:00:05]} Re6 {[%emt 0:07:11]} 32. Nf2 {[%emt 0:00:53]} Rg6+ {[%emt 0:00:05]} 33. Ng4 {[%emt 0:00:06]} Nf6 {[%emt 0:00:07]} 34. Rd8+ {[%emt 0:00:33]} Kf7 {[%emt 0:00:10]} 35. Bg2 {[%emt 0:02:34]} Rb1 {[%emt 0:10:34]} 36. Bxe5 {[%emt 0:00:51]} h5 {[%emt 0:00:52]} 37. Bxf6 {[%emt 0:02:28]} hxg4 {[%emt 0:00:21]} 38. fxg4 {[%emt 0:01:15]} Kxf6 {[%emt 0:02:10]} 39. e5+ {[%emt 0:00:41]} Kxe5 {[%emt 0:00:06]} 40. Bxb7 {[%emt 0:00:05]} Rb3+ {[%emt 0:00:51]} 41. Kh4 {[%emt 0:30:19]} Kf4 {[%emt 0:31:41]} 42. g5 {[%emt 0:01:33]} Rxg5 {[%emt 0:00:06]} 43. Bc8 {[%emt 0:01:10]} Rg6 {[%emt 0:00:24]} 0-1

[Event "90th GER-ch 2019"]
[Site "Magdeburg"]
[Date "2019.05.31"]
[Round "8.8"]
[White "Becker, Marcel"]
[Black "Krastev, Alexander"]
[Result "1-0"]
[ECO "A57"]
[WhiteElo "2308"]
[BlackElo "2344"]
[Annotator "ChessBase"]
[PlyCount "61"]
[EventDate "2019.05.26"]
[EventType "tourn"]
[EventCountry "GER"]
[SourceTitle "playchess.com"]
[Source "ChessBase"]
[SourceQuality "1"]
[TimeControl "40/5400+30:1800+30"]

1. d4 {[%emt 0:00:00]} Nf6 {[%emt 0:00:00]} 2. c4 {[%emt 0:00:00]} c5 {[%emt 0:00:00]} 3. d5 {[%emt 0:00:00]} b5 {[%emt 0:00:00]} 4. Qc2 {[%emt 0:01:08]} bxc4 {[%emt 0:02:13]} 5. e4 {[%emt 0:00:11]} d6 {[%emt 0:00:28]} 6. Bxc4 {[%emt 0:00:09]} g6 {[%emt 0:01:09]} 7. f4 {[%emt 0:00:38]} Bg7 {[%emt 0:01:45]} 8. Nf3 {[%emt 0:00:11]} O-O {[%emt 0:00:45]} 9. O-O {[%emt 0:00:09]} Ba6 {[%emt 0:14:09]} 10. Na3 {[%emt 0:00:12]} Nfd7 {[%emt 0:02:18]} 11. Bd2 {[%emt 0:05:20]} Nb6 {[%emt 0:03:36]} 12. Bxa6 {[%emt 0:06:22]} Nxa6 {[%emt 0:00:05]} 13. Bc3 {[%emt 0:00:11]} Nb4 {[%emt 0:04:52]} 14. Qe2 {[%emt 0:01:53]} Qd7 {[%emt 0:01:35]} 15. Bxg7 {[%emt 0:15:58]} Kxg7 {[%emt 0:00:07]} 16. Nc4 {[%emt 0:00:49]} Qb5 {[%emt 0:05:59]} 17. b3 {[%emt 0:00:58]} Rab8 {[%emt 0:05:42]} 18. a4 {[%emt 0:04:07]} Qa6 {[%emt 0:11:49]} 19. a5 {[%emt 0:03:29]} Nxc4 {[%emt 0:00:53]} 20. bxc4 {[%emt 0:00:11]} Rbe8 {[%emt 0:03:18]} 21. Qb2+ {[%emt 0:02:51]} Kg8 {[%emt 0:01:44]} 22. Qc3 {[%emt 0:00:12]} e6 {[%emt 0:01:46]} 23. f5 {[%emt 0:11:21]} exf5 {[%emt 0:20:39]} 24. exf5 {[%emt 0:00:13]} Qc8 {[%emt 0:00:28]} 25. Ng5 {[%emt 0:07:55]} Qd8 {[%emt 0:03:40]} 26. Nxh7 {[%emt 0:10:00]} Kxh7 {[%emt 0:00:23]} 27. Qh3+ {[%emt 0:00:12]} Kg7 {[%emt 0:00:07]} 28. f6+ {[%emt 0:00:11]} Qxf6 {[%emt 0:00:03]} 29. Rxf6 {[%emt 0:00:11]} Kxf6 {[%emt 0:00:03]} 30. Qd7 {[%emt 0:00:25]} Rd8 {[%emt 0:01:01]} 31. Rf1+ {[%emt 0:00:20]} 1-0

[Event "90th GER-ch 2019"]
[Site "Magdeburg"]
[Date "2019.05.31"]
[Round "8.9"]
[White "Schulz, Karsten"]
[Black "Svane, Frederik"]
[Result "1-0"]
[ECO "A05"]
[WhiteElo "2227"]
[BlackElo "2342"]
[Annotator "ChessBase"]
[PlyCount "143"]
[EventDate "2019.05.26"]
[EventType "tourn"]
[EventCountry "GER"]
[SourceTitle "playchess.com"]
[Source "ChessBase"]
[SourceQuality "1"]
[TimeControl "40/5400+30:1800+30"]

1. Nf3 {[%emt 0:00:00]} Nf6 {[%emt 0:00:00]} 2. g3 {[%emt 0:00:00]} g6 {[%emt 0:00:00]} 3. b3 {[%emt 0:00:00]} d5 {[%emt 0:00:00]} 4. c4 {[%emt 0:00:00]} d4 {[%emt 0:00:19]} 5. Bb2 {[%emt 0:00:16]} c5 {[%emt 0:00:16]} 6. b4 {[%emt 0:00:14]} Bg7 {[%emt 0:00:11]} 7. Bg2 {[%emt 0:00:06]} O-O {[%emt 0:00:08]} 8. O-O {[%emt 0:00:07]} Re8 {[%emt 0:00:29]} 9. d3 {[%emt 0:00:49]} e5 {[%emt 0:00:09]} 10. bxc5 {[%emt 0:02:27]} Na6 {[%emt 0:00:22]} 11. Ba3 {[%emt 0:04:45]} e4 {[%emt 0:03:09]} 12. Ng5 {[%emt 0:02:47]} h6 {[%emt 0:00:24]} 13. Nxe4 {[%emt 0:04:20]} Nxe4 {[%emt 0:00:12]} 14. Bxe4 {[%emt 0:00:10]} Rxe4 {[%emt 0:00:04]} 15. dxe4 {[%emt 0:00:07]} d3 {[%emt 0:00:05]} 16. Qxd3 {[%emt 0:01:10]} Qxd3 {[%emt 0:07:26]} 17. exd3 {[%emt 0:06:09]} Bxa1 {[%emt 0:00:04]} 18. Nd2 {[%emt 0:00:54]} Bc3 {[%emt 0:39:40]} 19. Nb3 {[%emt 0:01:19]} Bh3 {[%emt 0:06:11]} 20. Rc1 {[%emt 0:01:54]} Bb4 {[%emt 0:06:27]} 21. Bxb4 {[%emt 0:01:16]} Nxb4 {[%emt 0:00:04]} 22. d4 {[%emt 0:00:22]} Nxa2 {[%emt 0:09:06]} 23. Ra1 {[%emt 0:02:41]} Nc3 {[%emt 0:02:47]} 24. f3 {[%emt 0:00:17]} a5 {[%emt 0:01:08]} 25. Rxa5 {[%emt 0:00:42]} Rxa5 {[%emt 0:00:04]} 26. Nxa5 {[%emt 0:00:09]} Ne2+ {[%emt 0:00:04]} 27. Kf2 {[%emt 0:00:17]} Nxd4 {[%emt 0:00:03]} 28. Nxb7 {[%emt 0:00:45]} Bc8 {[%emt 0:01:27]} 29. Na5 {[%emt 0:07:23]} Bd7 {[%emt 0:00:50]} 30. Ke3 {[%emt 0:00:52]} Nc6 {[%emt 0:00:11]} 31. Nb3 {[%emt 0:00:39]} Kf8 {[%emt 0:08:17]} 32. f4 {[%emt 0:03:26]} Ke7 {[%emt 0:00:06]} 33. Nd2 {[%emt 0:01:03]} h5 {[%emt 0:03:23]} 34. Kd3 {[%emt 0:10:15]} Bg4 {[%emt 0:00:23]} 35. Nf1 {[%emt 0:00:41]} Nd8 {[%emt 0:09:11]} 36. Kd4 {[%emt 0:02:50]} Ne6+ {[%emt 0:02:14]} 37. Kd5 {[%emt 0:00:34]} Bf3 {[%emt 0:00:05]} 38. c6 {[%emt 0:01:21]} f6 {[%emt 0:00:20]} 39. Nd2 {[%emt 0:00:34]} Bg2 {[%emt 0:00:29]} 40. c5 {[%emt 0:00:17]} Nc7+ {[%emt 0:03:02]} 41. Kd4 {[%emt 0:33:17]} Bh3 {[%emt 0:02:29]} 42. Nf3 {[%emt 0:00:00]} Bf1 {[%emt 0:03:46]} 43. Nh4 {[%emt 0:00:00]} Ne6+ {[%emt 0:06:50]} 44. Ke3 {[%emt 0:00:00]} g5 {[%emt 0:12:28]} 45. Nf5+ {[%emt 0:00:00]} Kd8 {[%emt 0:01:54]} 46. e5 {[%emt 0:00:00]} fxe5 {[%emt 0:00:09]} 47. fxg5 {[%emt 0:00:00]} Nxg5 {[%emt 0:00:26]} 48. Ng7 {[%emt 0:00:00]} Kc7 {[%emt 0:03:06]} 49. Nxh5 {[%emt 0:00:00]} Kxc6 {[%emt 0:00:02]} 50. h4 {[%emt 0:00:00]} Nf7 {[%emt 0:00:01]} 51. g4 {[%emt 0:00:00]} Kxc5 {[%emt 0:00:06]} 52. Ng3 {[%emt 0:00:00]} Kd5 {[%emt 0:00:21]} 53. Nxf1 {[%emt 0:00:00]} Ke6 {[%emt 0:01:46]} 54. Ng3 {[%emt 0:00:00]} Kf6 {[%emt 0:02:42]} 55. Ne4+ {[%emt 0:00:00]} Kg6 {[%emt 0:00:12]} 56. Kf3 {[%emt 0:00:00]} Nd8 {[%emt 0:01:31]} 57. Kg3 {[%emt 0:00:00]} Ne6 {[%emt 0:00:08]} 58. h5+ {[%emt 0:00:00]} Kh6 {[%emt 0:00:37]} 59. Kh4 {[%emt 0:00:00]} Nf4 {[%emt 0:00:05]} 60. g5+ {[%emt 0:00:00]} Kh7 {[%emt 0:00:22]} 61. Kg4 {[%emt 0:00:00]} Kg7 {[%emt 0:00:04]} 62. Nf6 {[%emt 0:00:00]} Kf7 {[%emt 0:00:25]} 63. Kf5 {[%emt 0:00:00]} Kg7 {[%emt 0:02:13]} 64. h6+ {[%emt 0:01:10]} Kf7 {[%emt 0:00:45]} 65. Ng4 {[%emt 0:00:09]} Nd5 {[%emt 0:00:20]} 66. Nxe5+ {[%emt 0:00:09]} Kg8 {[%emt 0:00:04]} 67. g6 {[%emt 0:00:34]} Ne7+ {[%emt 0:00:03]} 68. Kg5 {[%emt 0:00:23]} Nd5 {[%emt 0:00:40]} 69. Nf7 {[%emt 0:00:17]} Nc7 {[%emt 0:00:35]} 70. h7+ {[%emt 0:00:17]} Kf8 {[%emt 0:00:01]} 71. h8=Q+ {[%emt 0:00:17]} Ke7 {[%emt 0:00:04]} 72. Qd8+ {[%emt 0:00:29]} 1-0

[Event "90th GER-ch 2019"]
[Site "Magdeburg"]
[Date "2019.05.31"]
[Round "8.10"]
[White "Gungl, Theo"]
[Black "Trifan, Andrei Ioan"]
[Result "1-0"]
[ECO "E92"]
[WhiteElo "2331"]
[BlackElo "2268"]
[Annotator "ChessBase"]
[PlyCount "80"]
[EventDate "2019.05.26"]
[EventType "tourn"]
[EventCountry "GER"]
[SourceTitle "playchess.com"]
[Source "ChessBase"]
[SourceQuality "1"]
[TimeControl "40/5400+30:1800+30"]

1. d4 {[%emt 0:00:00]} Nf6 {[%emt 0:00:00]} 2. c4 {[%emt 0:00:00]} g6 {[%emt 0:00:26]} 3. Nc3 {[%emt 0:00:00]} Bg7 {[%emt 0:00:30]} 4. e4 {[%emt 0:00:00]} d6 {[%emt 0:00:21]} 5. Nf3 {[%emt 0:00:02]} O-O {[%emt 0:00:47]} 6. Be2 {[%emt 0:00:05]} e5 {[%emt 0:00:26]} 7. d5 {[%emt 0:00:09]} a5 {[%emt 0:01:10]} 8. Bg5 {[%emt 0:01:37]} Na6 {[%emt 0:01:59]} 9. Nd2 {[%emt 0:00:19]} Qe8 {[%emt 0:02:02]} 10. O-O {[%emt 0:05:06]} Kh8 {[%emt 0:02:01]} 11. a3 {[%emt 0:02:24]} Bd7 {[%emt 0:01:38]} 12. b3 {[%emt 0:00:29]} Ng8 {[%emt 0:01:03]} 13. Rb1 {[%emt 0:06:15]} f5 {[%emt 0:04:35]} 14. f3 {[%emt 0:01:07]} Bh6 {[%emt 0:00:57]} 15. Bxh6 {[%emt 0:06:47]} Nxh6 {[%emt 0:00:07]} 16. b4 {[%emt 0:02:53]} axb4 {[%emt 0:05:19]} 17. axb4 {[%emt 0:00:01]} Qe7 {[%emt 0:00:12]} 18. Rf2 {[%emt 0:16:02]} f4 {[%emt 0:21:11]} 19. Qc2 {[%emt 0:11:29]} g5 {[%emt 0:06:39]} 20. h3 {[%emt 0:09:38]} Nf7 {[%emt 0:02:53]} 21. Nd1 {[%emt 0:08:00]} c5 {[%emt 0:06:48]} 22. dxc6 {[%emt 0:02:36]} bxc6 {[%emt 0:01:41]} 23. b5 {[%emt 0:02:09]} Nc7 {[%emt 0:10:32]} 24. Nc3 {[%emt 0:00:44]} Ne6 {[%emt 0:04:16]} 25. Nb3 {[%emt 0:02:34]} Rfc8 {[%emt 0:03:50]} 26. Qd2 {[%emt 0:02:53]} Be8 {[%emt 0:02:17]} 27. Rff1 {[%emt 0:04:45]} h5 {[%emt 0:06:25]} 28. Rfd1 {[%emt 0:01:13]} Rd8 {[%emt 0:01:11]} 29. Ra1 {[%emt 0:06:30]} Rab8 {[%emt 0:01:17]} 30. Qe1 {[%emt 0:03:03]} Nh6 {[%emt 0:03:00]} 31. Na5 {[%emt 0:01:16]} Nd4 {[%emt 0:02:04]} 32. Nxc6 {[%emt 0:01:21]} Bxc6 {[%emt 0:03:06]} 33. bxc6 {[%emt 0:00:01]} Nxc6 {[%emt 0:00:10]} 34. Nb5 {[%emt 0:00:15]} Nf7 {[%emt 0:00:57]} 35. Qd2 {[%emt 0:01:05]} Rd7 {[%emt 0:01:15]} 36. Ra6 {[%emt 0:00:44]} Rc8 {[%emt 0:02:34]} 37. c5 {[%emt 0:02:02]} Nb8 {[%emt 0:01:31]} 38. cxd6 {[%emt 0:00:52]} Nxa6 {[%emt 0:01:16]} 39. dxe7 {[%emt 0:00:02]} Rxd2 {[%emt 0:00:08]} 40. Rxd2 {[%emt 0:00:01]} Re8 1-0

[Event "90th GER-ch 2019"]
[Site "Magdeburg"]
[Date "2019.05.31"]
[Round "8.11"]
[White "Pajeken, Jakob Leon"]
[Black "Schulz, Lukas"]
[Result "1/2-1/2"]
[ECO "E62"]
[WhiteElo "2359"]
[BlackElo "2302"]
[Annotator "ChessBase"]
[PlyCount "90"]
[EventDate "2019.05.26"]
[EventType "tourn"]
[EventCountry "GER"]
[SourceTitle "playchess.com"]
[Source "ChessBase"]
[SourceQuality "1"]
[TimeControl "40/5400+30:1800+30"]

1. d4 {[%emt 0:00:00]} Nf6 {[%emt 0:00:00]} 2. Nf3 {[%emt 0:00:00]} g6 {[%emt 0:00:00]} 3. g3 {[%emt 0:00:00]} Bg7 {[%emt 0:00:00]} 4. Bg2 {[%emt 0:00:00]} O-O {[%emt 0:00:00]} 5. c4 {[%emt 0:00:00]} d6 {[%emt 0:00:00]} 6. Nc3 {[%emt 0:00:08]} Nc6 {[%emt 0:00:06]} 7. O-O {[%emt 0:00:07]} e5 {[%emt 0:00:05]} 8. dxe5 {[%emt 0:00:05]} dxe5 {[%emt 0:00:34]} 9. Bg5 {[%emt 0:00:22]} Be6 {[%emt 0:01:21]} 10. Qa4 {[%emt 0:00:09]} Qe8 {[%emt 0:03:46]} 11. Nd2 {[%emt 0:00:27]} Nd4 {[%emt 0:11:30]} 12. Qxe8 {[%emt 0:07:41]} Raxe8 {[%emt 0:04:20]} 13. e3 {[%emt 0:05:07]} Nc6 {[%emt 0:00:20]} 14. Nd5 {[%emt 0:18:14]} Bxd5 {[%emt 0:18:49]} 15. cxd5 {[%emt 0:00:11]} Nb4 {[%emt 0:00:18]} 16. Rfc1 {[%emt 0:18:13]} Nfxd5 {[%emt 0:10:39]} 17. Bxd5 {[%emt 0:01:56]} Nxd5 {[%emt 0:00:49]} 18. e4 {[%emt 0:00:09]} f6 {[%emt 0:05:00]} 19. exd5 {[%emt 0:00:21]} fxg5 {[%emt 0:00:04]} 20. Rxc7 {[%emt 0:01:01]} e4 {[%emt 0:01:05]} 21. Nc4 {[%emt 0:13:29]} Rc8 {[%emt 0:06:20]} 22. Rxc8 {[%emt 0:02:31]} Rxc8 {[%emt 0:00:04]} 23. Ne3 {[%emt 0:00:18]} Bxb2 {[%emt 0:01:57]} 24. Rb1 {[%emt 0:02:16]} Rc1+ {[%emt 0:00:18]} 25. Rxc1 {[%emt 0:00:04]} Bxc1 {[%emt 0:00:04]} 26. Nc4 {[%emt 0:00:28]} Kf8 {[%emt 0:01:32]} 27. Nd6 {[%emt 0:05:41]} e3 {[%emt 0:02:34]} 28. Kf1 {[%emt 0:00:19]} Ke7 {[%emt 0:20:31]} 29. Nxb7 {[%emt 0:01:16]} g4 {[%emt 0:01:54]} 30. Na5 {[%emt 0:04:58]} Kd6 {[%emt 0:03:15]} 31. Nb3 {[%emt 0:02:22]} Ba3 {[%emt 0:00:54]} 32. fxe3 {[%emt 0:00:07]} Kxd5 {[%emt 0:00:06]} 33. Ke2 {[%emt 0:01:04]} h5 {[%emt 0:02:45]} 34. Kd3 {[%emt 0:02:26]} Bd6 {[%emt 0:01:09]} 35. e4+ {[%emt 0:00:48]} Ke5 {[%emt 0:00:56]} 36. a4 {[%emt 0:03:09]} a6 {[%emt 0:02:02]} 37. Nd4 {[%emt 0:03:52]} Bc5 {[%emt 0:00:09]} 38. Nc6+ {[%emt 0:00:05]} Kd6 {[%emt 0:00:38]} 39. Nd4 {[%emt 0:00:38]} Bb6 {[%emt 0:01:22]} 40. Ne2 {[%emt 0:01:55]} Bc5 {[%emt 0:02:09]} 41. Nd4 {[%emt 0:30:51]} Ke5 {[%emt 0:06:42]} 42. Nc6+ {[%emt 0:00:00]} Ke6 {[%emt 0:04:12]} 43. Nd4+ {[%emt 0:00:00]} Kd6 {[%emt 0:00:32]} 44. Kc4 {[%emt 0:00:00]} Bb6 {[%emt 0:02:26]} 45. Kd3 {[%emt 0:00:00]} Ke5 {[%emt 0:00:39]} 1/2-1/2